[Event "Early-Titled-Tuesday-Blitz-May-07-2024"]
[Site "Chess.com"]
[Date "2024.05.07"]
[Round "7"]
[White "BeReal24"]
[Black "Kotlyar_K"]
[Result "1-0"]
[WhiteElo "2498"]
[BlackElo "2649"]
[TimeControl "180+1"]
[EndTime "9:22:59 PDT"]
[Termination "BeReal24 won by checkmate"]

1. c4 {[%clk 0:03:00.9]} 1... e5 {[%clk 0:02:57.3]} 2. Nc3 {[%clk 0:03:00.3]}
2... Bb4 {[%clk 0:02:57.5]} 3. Nd5 {[%clk 0:02:59.7]} 3... Be7 {[%clk
0:02:57.5]} 4. Nf3 {[%clk 0:02:58.2]} 4... d6 {[%clk 0:02:57.8]} 5. g3 {[%clk
0:02:57.4]} 5... f5 {[%clk 0:02:58.1]} 6. Bg2 {[%clk 0:02:57.1]} 6... Nf6 {[%clk
0:02:57.4]} 7. O-O {[%clk 0:02:50.6]} 7... c6 {[%clk 0:02:55.1]} 8. Nxf6+ {[%clk
0:02:47.2]} 8... Bxf6 {[%clk 0:02:55.5]} 9. d4 {[%clk 0:02:47.5]} 9... e4 {[%clk
0:02:54.9]} 10. Nd2 {[%clk 0:02:46.9]} 10... O-O {[%clk 0:02:51.7]} 11. e3
{[%clk 0:02:45.8]} 11... d5 {[%clk 0:02:50.2]} 12. cxd5 {[%clk 0:02:43.9]} 12...
cxd5 {[%clk 0:02:51.1]} 13. b3 {[%clk 0:02:42.9]} 13... Nc6 {[%clk 0:02:50.6]}
14. Ba3 {[%clk 0:02:38.5]} 14... Re8 {[%clk 0:02:50.2]} 15. Qc2 {[%clk
0:02:35.6]} 15... Be6 {[%clk 0:02:49.5]} 16. Rac1 {[%clk 0:02:34.9]} 16... Rc8
{[%clk 0:02:49.6]} 17. Qb2 {[%clk 0:02:34.9]} 17... Qd7 {[%clk 0:02:46.4]} 18.
Nb1 {[%clk 0:02:30.4]} 18... f4 {[%clk 0:02:46.1]} 19. gxf4 {[%clk 0:02:18.7]}
19... Bh3 {[%clk 0:02:46.1]} 20. Bxh3 {[%clk 0:02:17.4]} 20... Qxh3 {[%clk
0:02:47]} 21. Nc3 {[%clk 0:02:12.2]} 21... Qg4+ {[%clk 0:02:11.7]} 22. Kh1
{[%clk 0:02:11.7]} 22... Qf3+ {[%clk 0:02:12.6]} 23. Kg1 {[%clk 0:02:11.7]}
23... Bxd4 {[%clk 0:02:09.6]} 24. Qe2 {[%clk 0:02:02.1]} 24... Bxc3 {[%clk
0:01:37]} 25. Qxf3 {[%clk 0:02:01.8]} 25... exf3 {[%clk 0:01:37.6]} 26. Rxc3
{[%clk 0:02:00.5]} 26... d4 {[%clk 0:01:38.3]} 27. Rd3 {[%clk 0:01:54]} 27...
Rcd8 {[%clk 0:01:32.5]} 28. Rfd1 {[%clk 0:01:50.3]} 28... dxe3 {[%clk
0:01:31.9]} 29. Rxd8 {[%clk 0:01:47.3]} 29... exf2+ {[%clk 0:01:27]} 30. Kxf2
{[%clk 0:01:46.5]} 30... Nxd8 {[%clk 0:01:27.5]} 31. Kxf3 {[%clk 0:01:45.7]}
31... Nc6 {[%clk 0:01:25.3]} 32. Rd7 {[%clk 0:01:43.2]} 32... b6 {[%clk
0:01:22.1]} 33. Bb2 {[%clk 0:01:42.2]} 33... Re7 {[%clk 0:01:20.8]} 34. Rxe7
{[%clk 0:01:40.1]} 34... Nxe7 {[%clk 0:01:21.7]} 35. Ke4 {[%clk 0:01:40.3]}
35... Kf7 {[%clk 0:01:21.5]} 36. f5 {[%clk 0:01:38.7]} 36... Nc6 {[%clk
0:01:13.9]} 37. a3 {[%clk 0:01:35.9]} 37... Na5 {[%clk 0:01:13.2]} 38. b4 {[%clk
0:01:29.9]} 38... Nc4 {[%clk 0:01:13.5]} 39. Bc1 {[%clk 0:01:07.2]} 39... Kf6
{[%clk 0:01:10]} 40. a4 {[%clk 0:01:05.6]} 40... Nd6+ {[%clk 0:01:07.8]} 41. Kd5
{[%clk 0:01:05.2]} 41... Nxf5 {[%clk 0:01:08.4]} 42. Kc6 {[%clk 0:01:02.8]}
42... Ke6 {[%clk 0:00:47.7]} 43. Kb7 {[%clk 0:00:59.6]} 43... a5 {[%clk
0:00:47.6]} 44. b5 {[%clk 0:00:52.3]} 44... Kd5 {[%clk 0:00:38.4]} 45. Kxb6
{[%clk 0:00:51.2]} 45... Nd4 {[%clk 0:00:39.1]} 46. Bb2 {[%clk 0:00:48.2]} 46...
Ne6 {[%clk 0:00:36.7]} 47. Kxa5 {[%clk 0:00:44.8]} 47... g5 {[%clk 0:00:37.2]}
48. Kb6 {[%clk 0:00:41.3]} 48... Nc5 {[%clk 0:00:36.5]} 49. a5 {[%clk
0:00:36.9]} 49... Na4+ {[%clk 0:00:34.7]} 50. Kc7 {[%clk 0:00:36.5]} 50... Kc5
{[%clk 0:00:24.8]} 51. a6 {[%clk 0:00:25.1]} 51... Kxb5 {[%clk 0:00:25.1]} 52.
a7 {[%clk 0:00:25]} 52... Nb6 {[%clk 0:00:25.5]} 53. Bd4 {[%clk 0:00:24.2]}
53... Nd5+ {[%clk 0:00:19.5]} 54. Kb7 {[%clk 0:00:24.1]} 54... Kc4 {[%clk
0:00:19.7]} 55. a8=Q {[%clk 0:00:22.4]} 55... Kxd4 {[%clk 0:00:20]} 56. Qh8+
{[%clk 0:00:22.4]} 56... Ke4 {[%clk 0:00:18.9]} 57. Qxh7+ {[%clk 0:00:22.6]}
57... Ke5 {[%clk 0:00:18.7]} 58. Qg7+ {[%clk 0:00:21.4]} 58... Kf5 {[%clk
0:00:18.2]} 59. Qf7+ {[%clk 0:00:20.6]} 59... Nf6 {[%clk 0:00:18.6]} 60. Kc6
{[%clk 0:00:19.3]} 60... g4 {[%clk 0:00:18.2]} 61. Kd6 {[%clk 0:00:18.8]} 61...
Kg5 {[%clk 0:00:18.8]} 62. Qe7 {[%clk 0:00:18.3]} 62... Kf5 {[%clk 0:00:15.2]}
63. Qe5+ {[%clk 0:00:17.9]} 63... Kg6 {[%clk 0:00:15.8]} 64. Ke6 {[%clk
0:00:17.6]} 64... Nh7 {[%clk 0:00:15.9]} 65. Qf5+ {[%clk 0:00:17.7]} 65... Kg7
{[%clk 0:00:16.5]} 66. Qxg4+ {[%clk 0:00:17.8]} 66... Kh8 {[%clk 0:00:14.2]} 67.
Kf7 {[%clk 0:00:17.3]} 67... Ng5+ {[%clk 0:00:14.7]} 68. Qxg5 {[%clk 0:00:17.4]}
68... Kh7 {[%clk 0:00:14.8]} 69. Qh5# {[%clk 0:00:17.7]} 1-0

[Event "Early-Titled-Tuesday-Blitz-May-07-2024"]
[Site "Chess.com"]
[Date "2024.05.07"]
[Round "7"]
[White "Njal28"]
[Black "Kirill_Klukin"]
[Result "1-0"]
[WhiteElo "3114"]
[BlackElo "2850"]
[TimeControl "180+1"]
[EndTime "9:23:00 PDT"]
[Termination "Njal28 won on time"]

1. e4 {[%clk 0:03:00.9]} 1... e6 {[%clk 0:02:58.7]} 2. d4 {[%clk 0:03:00.5]}
2... d5 {[%clk 0:02:57.7]} 3. exd5 {[%clk 0:03:01.4]} 3... exd5 {[%clk
0:02:57.5]} 4. Nf3 {[%clk 0:03:02.3]} 4... Nc6 {[%clk 0:02:57.7]} 5. Bb5 {[%clk
0:03:02.4]} 5... Bd6 {[%clk 0:02:57.2]} 6. c4 {[%clk 0:02:59.6]} 6... dxc4
{[%clk 0:02:54.9]} 7. d5 {[%clk 0:03:00.5]} 7... a6 {[%clk 0:02:53.4]} 8. Bxc4
{[%clk 0:03:01]} 8... b5 {[%clk 0:02:33.9]} 9. Bb3 {[%clk 0:02:50.8]} 9... Qe7+
{[%clk 0:02:24.5]} 10. Be3 {[%clk 0:02:48.8]} 10... Na5 {[%clk 0:02:24.5]} 11.
O-O {[%clk 0:02:44.2]} 11... Nxb3 {[%clk 0:02:17.5]} 12. axb3 {[%clk 0:02:45]}
12... Nf6 {[%clk 0:02:12.3]} 13. Re1 {[%clk 0:02:38.8]} 13... O-O {[%clk
0:02:11.9]} 14. Bg5 {[%clk 0:02:38.8]} 14... Qd8 {[%clk 0:02:12.2]} 15. Nc3
{[%clk 0:02:39.7]} 15... h6 {[%clk 0:02:09.6]} 16. Bh4 {[%clk 0:02:40.4]} 16...
Bg4 {[%clk 0:02:06.5]} 17. h3 {[%clk 0:02:35.5]} 17... Bh5 {[%clk 0:02:06.3]}
18. g4 {[%clk 0:02:25.7]} 18... Bg6 {[%clk 0:02:04.5]} 19. Nd4 {[%clk
0:02:20.9]} 19... Bc5 {[%clk 0:01:52.2]} 20. Nc6 {[%clk 0:02:06.9]} 20... Qd6
{[%clk 0:01:50.6]} 21. b4 {[%clk 0:01:59.3]} 21... Bb6 {[%clk 0:01:47.5]} 22.
Qf3 {[%clk 0:01:51.3]} 22... Rfe8 {[%clk 0:01:25.8]} 23. Bg3 {[%clk 0:01:50.1]}
23... Qf8 {[%clk 0:01:13.1]} 24. Bh4 {[%clk 0:00:38.2]} 24... Rxe1+ {[%clk
0:01:08.5]} 25. Rxe1 {[%clk 0:00:37.8]} 25... Re8 {[%clk 0:01:09.3]} 26. Rxe8
{[%clk 0:00:37.7]} 26... Qxe8 {[%clk 0:01:08.9]} 27. Bxf6 {[%clk 0:00:36.6]}
27... gxf6 {[%clk 0:01:02]} 28. Qxf6 {[%clk 0:00:37.5]} 28... Qe1+ {[%clk
0:00:39.1]} 29. Kg2 {[%clk 0:00:37.4]} 29... Bd3 {[%clk 0:00:31.2]} 30. Ne7+
{[%clk 0:00:14.9]} 30... Kf8 {[%clk 0:00:29]} 31. d6 {[%clk 0:00:13.5]} 31...
cxd6 {[%clk 0:00:20.6]} 32. Ncd5 {[%clk 0:00:13]} 32... Qf1+ {[%clk 0:00:11.6]}
33. Kh2 {[%clk 0:00:06.7]} 33... Qxf2+ {[%clk 0:00:09.7]} 34. Qxf2 {[%clk
0:00:06.5]} 34... Bxf2 {[%clk 0:00:10.6]} 35. Nf5 {[%clk 0:00:04.1]} 35... Bxf5
{[%clk 0:00:10.2]} 36. gxf5 {[%clk 0:00:04.5]} 36... Bd4 {[%clk 0:00:11]} 37. b3
{[%clk 0:00:04.1]} 37... Ke8 {[%clk 0:00:09.4]} 38. Kg3 {[%clk 0:00:04.8]} 38...
Kd7 {[%clk 0:00:10.1]} 39. Kf4 {[%clk 0:00:04.4]} 39... Kc6 {[%clk 0:00:09.5]}
40. Ke4 {[%clk 0:00:05.3]} 40... Be5 {[%clk 0:00:09.5]} 41. Ne7+ {[%clk
0:00:02.3]} 41... Kd7 {[%clk 0:00:09.1]} 42. Nd5 {[%clk 0:00:03.2]} 42... h5
{[%clk 0:00:09]} 43. h4 {[%clk 0:00:03.2]} 43... Bb2 {[%clk 0:00:04.3]} 44. Nf4
{[%clk 0:00:03.2]} 44... Bc3 {[%clk 0:00:03.6]} 45. Nxh5 {[%clk 0:00:03.5]}
45... Be1 {[%clk 0:00:03.2]} 46. Nf6+ {[%clk 0:00:03.8]} 46... Ke7 {[%clk
0:00:02.4]} 47. Nd5+ {[%clk 0:00:04.1]} 47... Kf8 {[%clk 0:00:02.9]} 48. h5
{[%clk 0:00:05]} 48... Kg7 {[%clk 0:00:03.4]} 49. Nc7 {[%clk 0:00:04.3]} 49...
Bxb4 {[%clk 0:00:03.2]} 50. Nxa6 {[%clk 0:00:04.4]} 50... Be1 {[%clk 0:00:03.3]}
51. Nc7 {[%clk 0:00:04.6]} 51... Kh6 {[%clk 0:00:03]} 52. Nxb5 {[%clk
0:00:04.5]} 52... Bb4 {[%clk 0:00:02.5]} 53. Nc7 {[%clk 0:00:03.1]} 53... Kxh5
{[%clk 0:00:02]} 54. Nd5 {[%clk 0:00:04]} 54... Bc5 {[%clk 0:00:02.5]} 55. b4
{[%clk 0:00:04.9]} 55... Ba7 {[%clk 0:00:02.9]} 56. b5 {[%clk 0:00:05.8]} 56...
Kg5 {[%clk 0:00:03.3]} 57. b6 {[%clk 0:00:06.7]} 57... Bb8 {[%clk 0:00:03.8]}
58. Ne7 {[%clk 0:00:06]} 58... Kf6 {[%clk 0:00:04.1]} 59. Nc6 {[%clk 0:00:06.3]}
59... d5+ {[%clk 0:00:04.7]} 60. Kxd5 {[%clk 0:00:06.7]} 60... Bh2 {[%clk
0:00:05.5]} 61. Ke4 {[%clk 0:00:07.3]} 61... Kg5 {[%clk 0:00:06.2]} 62. b7
{[%clk 0:00:07.9]} 62... Kf6 {[%clk 0:00:06.6]} 63. b8=Q {[%clk 0:00:08.8]}
63... Bxb8 {[%clk 0:00:06.9]} 64. Nxb8 {[%clk 0:00:09.7]} 1-0

[Event "Early-Titled-Tuesday-Blitz-May-07-2024"]
[Site "Chess.com"]
[Date "2024.05.07"]
[Round "7"]
[White "Bykov_Egor"]
[Black "Airquake"]
[Result "1-0"]
[WhiteElo "2638"]
[BlackElo "2803"]
[TimeControl "180+1"]
[EndTime "9:23:04 PDT"]
[Termination "Bykov_Egor won on time"]

1. Nf3 {[%clk 0:02:59.7]} 1... c5 {[%clk 0:02:58.3]} 2. e3 {[%clk 0:02:58.4]}
2... Nf6 {[%clk 0:02:57.3]} 3. d4 {[%clk 0:02:55.7]} 3... cxd4 {[%clk
0:02:58.2]} 4. exd4 {[%clk 0:02:56]} 4... e6 {[%clk 0:02:57.7]} 5. c4 {[%clk
0:02:55.4]} 5... d5 {[%clk 0:02:57.8]} 6. Nc3 {[%clk 0:02:54.7]} 6... Nc6 {[%clk
0:02:56.8]} 7. c5 {[%clk 0:02:53.3]} 7... Ne4 {[%clk 0:02:45.5]} 8. Bb5 {[%clk
0:02:43.2]} 8... Qa5 {[%clk 0:02:38.2]} 9. Qb3 {[%clk 0:02:16.3]} 9... Nxc3
{[%clk 0:02:05.2]} 10. bxc3 {[%clk 0:02:15]} 10... Bd7 {[%clk 0:02:04.8]} 11.
Bf4 {[%clk 0:02:01.1]} 11... f6 {[%clk 0:01:52.1]} 12. O-O {[%clk 0:01:56.6]}
12... b6 {[%clk 0:01:49.9]} 13. c4 {[%clk 0:01:42.7]} 13... dxc4 {[%clk
0:01:33.5]} 14. Bxc4 {[%clk 0:01:37.3]} 14... Qb4 {[%clk 0:01:11.5]} 15. Qd3
{[%clk 0:00:59.5]} 15... Na5 {[%clk 0:00:51.2]} 16. Bxe6 {[%clk 0:00:53.7]}
16... Bxe6 {[%clk 0:00:45.6]} 17. Qe4 {[%clk 0:00:52.8]} 17... Kf7 {[%clk
0:00:45.4]} 18. Qxa8 {[%clk 0:00:50.3]} 18... bxc5 {[%clk 0:00:27.1]} 19. Qxa7+
{[%clk 0:00:48.2]} 19... Be7 {[%clk 0:00:26.9]} 20. Rab1 {[%clk 0:00:32.5]}
20... Qa3 {[%clk 0:00:12.9]} 21. Rb7 {[%clk 0:00:29.4]} 21... cxd4 {[%clk
0:00:06.1]} 22. Rxe7+ {[%clk 0:00:24.5]} 22... Qxe7 {[%clk 0:00:05.2]} 23. Qxa5
{[%clk 0:00:24.9]} 23... Rd8 {[%clk 0:00:04.9]} 24. Re1 {[%clk 0:00:21.2]} 24...
d3 {[%clk 0:00:04.5]} 25. Bd2 {[%clk 0:00:19.7]} 25... Qd7 {[%clk 0:00:02.9]}
26. Qb6 {[%clk 0:00:18.5]} 26... Rc8 {[%clk 0:00:02.8]} 27. Nd4 {[%clk
0:00:15.3]} 27... Bd5 {[%clk 0:00:02.3]} 28. Qb4 {[%clk 0:00:10.6]} 28... Qg4
{[%clk 0:00:02]} 29. f3 {[%clk 0:00:08.1]} 29... Bxf3 {[%clk 0:00:02.1]} 30.
Qe7+ {[%clk 0:00:06.6]} 30... Kg6 {[%clk 0:00:02.5]} 31. Nxf3 {[%clk 0:00:07]}
31... Rc2 {[%clk 0:00:02.7]} 32. Qe4+ {[%clk 0:00:07.4]} 32... Qxe4 {[%clk
0:00:03.1]} 33. Rxe4 {[%clk 0:00:08.3]} 33... Rxa2 {[%clk 0:00:03.6]} 34. Kf2
{[%clk 0:00:08.4]} 34... Kf5 {[%clk 0:00:03.3]} 35. Rd4 {[%clk 0:00:08.6]} 35...
g5 {[%clk 0:00:03.6]} 36. g4+ {[%clk 0:00:08.6]} 36... Ke6 {[%clk 0:00:03.7]}
37. Rxd3 {[%clk 0:00:08.7]} 37... h5 {[%clk 0:00:02]} 38. h3 {[%clk 0:00:09.3]}
38... hxg4 {[%clk 0:00:02.2]} 39. hxg4 {[%clk 0:00:10.2]} 39... Ra4 {[%clk
0:00:02.8]} 40. Kg3 {[%clk 0:00:10.1]} 40... Ra2 {[%clk 0:00:03.4]} 41. Re3+
{[%clk 0:00:10.4]} 41... Kf7 {[%clk 0:00:03.6]} 42. Bc3 {[%clk 0:00:11]} 42...
Kg6 {[%clk 0:00:03.8]} 43. Re6 {[%clk 0:00:10.6]} 43... Kh7 {[%clk 0:00:03.4]}
44. Rxf6 {[%clk 0:00:11.1]} 44... Ra3 {[%clk 0:00:04.3]} 45. Be5 {[%clk
0:00:11.5]} 45... Re3 {[%clk 0:00:04.2]} 46. Rf5 {[%clk 0:00:11.8]} 46... Kh6
{[%clk 0:00:04.2]} 47. Kf2 {[%clk 0:00:12]} 47... Rd3 {[%clk 0:00:04.1]} 48.
Nxg5 {[%clk 0:00:12]} 48... Ra3 {[%clk 0:00:03.6]} 49. Nf3 {[%clk 0:00:12.5]}
49... Kg6 {[%clk 0:00:03.5]} 50. Kg3 {[%clk 0:00:12.8]} 50... Ra2 {[%clk
0:00:03.4]} 51. Rf6+ {[%clk 0:00:13.4]} 51... Kh7 {[%clk 0:00:03.7]} 52. Kf4
{[%clk 0:00:13.6]} 52... Ra4+ {[%clk 0:00:03.4]} 53. Kf5 {[%clk 0:00:13.8]}
53... Ra5 {[%clk 0:00:03.2]} 54. Ng5+ {[%clk 0:00:14.4]} 54... Kg8 {[%clk
0:00:03]} 55. Rd6 {[%clk 0:00:13.8]} 55... Ra8 {[%clk 0:00:01.6]} 56. Kg6 {[%clk
0:00:13.4]} 56... Re8 {[%clk 0:00:01.3]} 57. Bf6 {[%clk 0:00:13.9]} 57... Rf8
{[%clk 0:00:01.5]} 58. Rd8 {[%clk 0:00:14.3]} 58... Rxd8 {[%clk 0:00:01.9]} 59.
Bxd8 {[%clk 0:00:14.5]} 59... Kf8 {[%clk 0:00:02.8]} 60. Bf6 {[%clk 0:00:14.9]}
60... Kg8 {[%clk 0:00:03.7]} 61. Nf7 {[%clk 0:00:12.6]} 61... Kf8 {[%clk
0:00:04.1]} 62. Nh6 {[%clk 0:00:13.1]} 62... Ke8 {[%clk 0:00:04.3]} 63. Kg7
{[%clk 0:00:13.8]} 63... Kd7 {[%clk 0:00:04.8]} 64. g5 {[%clk 0:00:14.7]} 64...
Kd6 {[%clk 0:00:05.3]} 65. g6 {[%clk 0:00:15.6]} 65... Kd5 {[%clk 0:00:05.8]}
66. Kf7 {[%clk 0:00:16.5]} 66... Ke4 {[%clk 0:00:06.3]} 67. g7 {[%clk
0:00:17.4]} 1-0

[Event "Early-Titled-Tuesday-Blitz-May-07-2024"]
[Site "Chess.com"]
[Date "2024.05.07"]
[Round "7"]
[White "Shuvalov"]
[Black "Slovineanu"]
[Result "0-1"]
[WhiteElo "2564"]
[BlackElo "2466"]
[TimeControl "180+1"]
[EndTime "9:23:11 PDT"]
[Termination "Slovineanu won on time"]

1. d4 {[%clk 0:02:56]} 1... Nf6 {[%clk 0:02:59.7]} 2. c4 {[%clk 0:02:55.6]} 2...
e6 {[%clk 0:02:59.9]} 3. Nf3 {[%clk 0:02:55.1]} 3... d5 {[%clk 0:03:00.1]} 4.
Nc3 {[%clk 0:02:54.7]} 4... c5 {[%clk 0:03:00.1]} 5. cxd5 {[%clk 0:02:53.8]}
5... Nxd5 {[%clk 0:02:59.8]} 6. e4 {[%clk 0:02:51.8]} 6... Nxc3 {[%clk
0:02:58.8]} 7. bxc3 {[%clk 0:02:52.7]} 7... cxd4 {[%clk 0:02:59.1]} 8. cxd4
{[%clk 0:02:53.6]} 8... Bb4+ {[%clk 0:02:59.2]} 9. Bd2 {[%clk 0:02:52.9]} 9...
Bxd2+ {[%clk 0:02:59.2]} 10. Qxd2 {[%clk 0:02:53.4]} 10... O-O {[%clk
0:02:59.3]} 11. h4 {[%clk 0:02:35.6]} 11... b6 {[%clk 0:02:51.7]} 12. h5 {[%clk
0:02:34.7]} 12... h6 {[%clk 0:02:51.4]} 13. Rd1 {[%clk 0:02:27.1]} 13... Bb7
{[%clk 0:02:48.9]} 14. Bd3 {[%clk 0:02:26.6]} 14... Nc6 {[%clk 0:02:24.9]} 15.
Bb1 {[%clk 0:02:20.9]} 15... Rc8 {[%clk 0:01:59.4]} 16. O-O {[%clk 0:02:12.3]}
16... Qd6 {[%clk 0:01:44.1]} 17. Rfe1 {[%clk 0:02:08.4]} 17... Qb4 {[%clk
0:01:30.2]} 18. Qf4 {[%clk 0:02:01.9]} 18... Rfd8 {[%clk 0:01:14.4]} 19. Qe3
{[%clk 0:01:35.1]} 19... Na5 {[%clk 0:01:03.5]} 20. d5 {[%clk 0:01:15.8]} 20...
Rc3 {[%clk 0:00:51.3]} 21. dxe6 {[%clk 0:00:46.8]} 21... Rxd1 {[%clk 0:00:28.3]}
22. exf7+ {[%clk 0:00:44.7]} 22... Kf8 {[%clk 0:00:22.6]} 23. Qd2 {[%clk
0:00:32.3]} 23... Rxe1+ {[%clk 0:00:21.6]} 24. Qxe1 {[%clk 0:00:33.2]} 24... Qc5
{[%clk 0:00:16.8]} 25. Kh2 {[%clk 0:00:25.8]} 25... Qxh5+ {[%clk 0:00:16.5]} 26.
Kg1 {[%clk 0:00:22.5]} 26... Qc5 {[%clk 0:00:16.2]} 27. Kh2 {[%clk 0:00:22.7]}
27... Rc1 {[%clk 0:00:15.3]} 28. Qd2 {[%clk 0:00:21.6]} 28... Qh5+ {[%clk
0:00:15]} 29. Kg3 {[%clk 0:00:20.6]} 29... Qg6+ {[%clk 0:00:12.4]} 30. Kh2
{[%clk 0:00:20.6]} 30... Qh5+ {[%clk 0:00:12]} 31. Kg3 {[%clk 0:00:20.9]} 31...
Qg6+ {[%clk 0:00:11.7]} 32. Kh2 {[%clk 0:00:21.3]} 32... Rc8 {[%clk 0:00:11.9]}
33. Qd7 {[%clk 0:00:14.6]} 33... Qxf7 {[%clk 0:00:10.8]} 34. Qd6+ {[%clk
0:00:14.3]} 34... Qe7 {[%clk 0:00:10.4]} 35. Qg6 {[%clk 0:00:12.3]} 35... Qc7+
{[%clk 0:00:09.2]} 36. e5 {[%clk 0:00:12.2]} 36... Qf7 {[%clk 0:00:08.7]} 37.
Qh7 {[%clk 0:00:11]} 37... Bxf3 {[%clk 0:00:07.7]} 38. gxf3 {[%clk 0:00:10.4]}
38... Qf4+ {[%clk 0:00:07]} 39. Kg2 {[%clk 0:00:10.3]} 39... Qxe5 {[%clk
0:00:06.8]} 40. Qh8+ {[%clk 0:00:09.3]} 40... Kf7 {[%clk 0:00:07]} 41. Qxc8
{[%clk 0:00:09.5]} 41... Qg5+ {[%clk 0:00:06.5]} 42. Kh2 {[%clk 0:00:08.9]}
42... Qh5+ {[%clk 0:00:06.3]} 43. Kg2 {[%clk 0:00:09.1]} 43... Qg5+ {[%clk
0:00:06.6]} 44. Kh2 {[%clk 0:00:09.4]} 44... Qe5+ {[%clk 0:00:06.8]} 45. Kg2
{[%clk 0:00:09.5]} 45... Qe6 {[%clk 0:00:06.4]} 46. Qc7+ {[%clk 0:00:07.8]}
46... Qe7 {[%clk 0:00:06.7]} 47. Qf4+ {[%clk 0:00:03.9]} 47... Kg8 {[%clk
0:00:05.7]} 48. Qf5 {[%clk 0:00:03.5]} 48... Qg5+ {[%clk 0:00:04.6]} 49. Qxg5
{[%clk 0:00:03.8]} 49... hxg5 {[%clk 0:00:05.2]} 50. Kg3 {[%clk 0:00:04.3]}
50... Kf7 {[%clk 0:00:05.9]} 51. Kg4 {[%clk 0:00:04.8]} 51... Kf6 {[%clk
0:00:06.3]} 52. f4 {[%clk 0:00:05.3]} 52... gxf4 {[%clk 0:00:06.7]} 53. Kxf4
{[%clk 0:00:06.2]} 53... g5+ {[%clk 0:00:07.3]} 54. Ke4 {[%clk 0:00:06.1]} 54...
Nc4 {[%clk 0:00:07.2]} 55. Kd4 {[%clk 0:00:05.3]} 55... Ne5 {[%clk 0:00:07.3]}
56. Be4 {[%clk 0:00:04.6]} 56... g4 {[%clk 0:00:06.9]} 57. Kd5 {[%clk
0:00:04.6]} 57... Ng6 {[%clk 0:00:06.1]} 58. Kc6 {[%clk 0:00:03.3]} 58... Nf4
{[%clk 0:00:05.7]} 59. Kb7 {[%clk 0:00:02.6]} 59... Ke5 {[%clk 0:00:06.3]} 60.
Bc6 {[%clk 0:00:02]} 60... Nd3 {[%clk 0:00:05.8]} 61. Kxa7 {[%clk 0:00:01.3]}
61... Nxf2 {[%clk 0:00:06.1]} 62. Kxb6 {[%clk 0:00:01.1]} 62... Ne4 {[%clk
0:00:06.4]} 63. a4 {[%clk 0:00:00.4]} 63... g3 {[%clk 0:00:06.8]} 0-1